Cogmind - Beta 13 *** ADVENTURER MODE // 2024.07.21 @ 19:11:57 Player: array Result: Destroyed by Y-45 Defender with Beam Rifle Performance ------------- Evolutions (2) 1000 Regions Visited (4) 800 Robots Destroyed (53) 265 Value Destroyed (2678) 2678 Prototype IDs (1) 20 Alien Tech Used (0) 0 Bonus (300) 300 TOTAL SCORE: 5063 Bonus ------- High Alert Combat Kills 136 Entered Garrisons 200 Friendly Fire -36 Cogmind --------- Core Integrity 0/550 Matter 445/450 Energy 160/160 System Corruption 0% Temperature Cool (9) Movement Rolling (150) Ox4 Location -8/Garrison Parts ------- > --- POWER (2) -------- Light Nuclear Core > --- PROPULSION (3) --- Light Treads Aluminum Leg Armored Wheel > --- UTILITY (3) ------ Improved Heat Sink High-capacity Storage Unit Large Matter Pod > --- WEAPON (3) ------- Particle Gun > --- INVENTORY (20) --- Medium Battery (150) Compact Battery (200) Small Matter Pod (50) Peak State ------------ > --- POWER ------------ Light Nuclear Core Light Angular Momentum Engine > --- PROPULSION ------- Aluminum Leg Aluminum Leg Aluminum Leg > --- UTILITY ---------- Small Storage Unit Improved Sensor Array Reflective Plating > --- WEAPON ----------- Subdweller Laser Subdweller Beam Cannon Dirty Datajack > --- INVENTORY -------- Light Nuclear Core Subdweller Optics Advanced Beam Rifle Advanced Beam Rifle [Rating: 29] Favorites ----------- Power Light Nuclear Core Engine Light Angular Momentum Engine Power Core Light Nuclear Core Propulsion Aluminum Leg Treads Light Treads Leg Aluminum Leg Wheel Armored Wheel Utility Small Storage Unit Device Structural Scanner Storage Small Storage Unit Processor Visual Processing Unit Protection Reflective Plating Weapon Beam Rifle Energy Gun Beam Rifle Energy Cannon Subdweller Beam Cannon Ballistic Gun Assault Rifle Launcher Grenade Launcher Special Melee Weapon Dirty Datajack Build | -11 -10 -10 -8 -8 ------- Run | Yrd Mat Sub Mat Gar Slots Evolved 4 | . . . 4 . Power 1 | . . . 1 . Propulsion 1 | . . . 1 . Utility 1 | . . . 1 . Weapon 1 | . . . 1 . Parts Attached 76 | 6 5 6 23 36 Power 13 | 2 1 2 4 4 Engine 8 | 2 1 2 1 2 Core 5 | . . . 3 2 Reactor . | . . . . . Propulsion 21 | 2 . 1 4 14 Treads 8 | . . . . 8 Leg 7 | 2 . 1 2 2 Wheel 6 | . . . 2 4 Hover . | . . . . . Flight . | . . . . . Utility 21 | . 3 1 5 12 Device 12 | . . 1 4 7 Storage 4 | . 1 . . 3 Processor 3 | . 2 . . 1 Hackware . | . . . . . Protection 2 | . . . 1 1 Artifact . | . . . . . Weapon 21 | 2 1 2 10 6 Energy Gun 10 | . . . 5 5 Energy Cannon 2 | . . 1 1 . Ballistic Gun 4 | 2 . 1 . 1 Ballistic Cannon . | . . . . . Launcher 3 | . 1 . 2 . Special Weapon . | . . . . . Impact Weapon . | . . . . . Slashing Weapon . | . . . . . Piercing Weapon . | . . . . . Special Melee Weapon 2 | . . . 2 . Unidentified Prototypes 1 | . . . . 1 Parts Lost 27 | . 1 2 . 24 Power 6 | . 1 . . 5 Propulsion 7 | . . 1 . 6 Utility 7 | . . . . 7 Weapon 7 | . . 1 . 6 Highest Loss Streak 6 | . 1 2 . 6 To Critical Strikes . | . . . . . Average Slot Usage (%) 90 | . 85 100 92 85 Engine 10 | . 14 14 10 8 Core 5 | . . . 6 7 Treads 3 | . . . . 7 Leg 14 | . 28 28 14 4 Wheel 5 | . . . 6 8 Device 11 | . . 9 14 14 Storage 9 | . 4 14 9 8 Processor 2 | . 9 4 . 1 Protection 1 | . . . 3 1 Energy Gun 11 | . . . 13 18 Energy Cannon 4 | . . 13 6 . Ballistic Gun 3 | . 15 3 1 1 Launcher 5 | . 12 11 1 2 Naked Turns . | . . . . . Heaviest Build 61 | 8 13 24 42 61 Greatest Support 70 | 20 20 20 30 70 Greatest Overweight (x) 9 | . . 1 3 9 Average Overweight (x) . | . . . 1 1 Largest Inventory Capacity 20 | 5 8 8 8 20 Average Capacity 7 | 5 5 8 8 7 Most Carried 8 | 4 5 8 8 7 Average Carried 3 | 3 4 4 5 2 Final Capacity 20 | 5 8 8 8 20 Final Carried 6 | 4 3 4 6 3 Class Distribution -------------------- 35% | Mutant 29% | Scavenger-Mutant 21% | Scavenger-Tank 7% | Scavenger-Gunner 6% | Scavenger-Skirmisher Dominant Class ---------------- Mutant | -10/Materials Mutant | -10/Subcaves Scavenger-Mutant | -8/Materials Scavenger-Mutant | -8/Garrison Resources | -11 -10 -10 -8 -8 ----------- Run | Yrd Mat Sub Mat Gar Matter Collected 1569 | 271 101 254 245 698 Remotely . | . . . . . Salvage Created 2343 | 32 286 318 588 1119 Parts 109 | 1 14 19 32 43 Haulers Intercepted . | . . . . . Recyclers Shooed 2 | . 2 . . . Parts Field Recycled . | . . . . . Retrieved Matter . | . . . . . Parts Self-Destructed 10 | . . 10 . . Prevented . | . . . . . Kills | -11 -10 -10 -8 -8 ------- Run | Yrd Mat Sub Mat Gar Combat Hostiles Destroyed 45 | 1 4 9 10 21 Guns 20 | 1 1 . 3 15 Cannons 7 | . . 1 6 . AOE 15 | . 3 8 1 3 Classes Destroyed 8 | 1 2 1 2 2 Recycler 2 | . 1 . 1 . Watcher 6 | . 3 . 3 . Swarmer 9 | . . . 3 6 Grunt 19 | 1 4 3 4 7 Sentry 9 | . . . 3 6 Hunter 1 | . . . . 1 Behemoth 1 | . . . . 1 Subdweller 6 | . . 6 . . Best Kill Streak 6 | 1 5 4 3 6 Combat Bots Only 6 | 1 4 4 3 6 Max Kills in Single Turn 3 | 1 1 3 1 2 Gunslinging 1 | . . . . 1 Exploded 3 | . 1 3 1 1 Melee . | . . . . . Uniques/NPCs Destroyed . | . . . . . Combat | -11 -10 -10 -8 -8 -------- Run | Yrd Mat Sub Mat Gar Hostile Shots Fired 368 | 5 33 4 42 284 Missed 105 | 1 11 1 11 81 Damage Taken 3096 | 33 280 87 336 2360 Core 611 | . 32 26 114 439 Absorbed by Shields 213 | . . . 54 159 Ignored by Resistances 890 | 10 84 26 109 661 Core Remaining (%) 88 | 100 . 76 . . Volleys Fired 199 | 4 24 14 30 127 Largest 3 | 2 2 2 3 3 Hottest 196 | 40 50 110 196 186 Shots Fired 384 | 8 41 26 74 235 Gun 313 | 8 32 8 44 221 Cannon 39 | . . 11 28 . Launcher 32 | . 9 7 2 14 Special . | . . . . . Kinetic 65 | 8 32 8 5 12 Thermal 287 | . . 11 67 209 Explosive 16 | . 9 7 . . Electromagnetic 16 | . . . 2 14 Robot Hit Streak 51 | 5 15 6 13 51 Robot Miss Streak 2 | 1 1 1 2 2 Penetration Max . | . . . . . Secondary Targets 3 | . . . . 3 Max Gunslinging Chain 1 | . . . . 1 Shots Hit Robots 276 | 6 25 8 57 180 Core Hits 110 | 2 16 18 25 49 Critical Kills . | . . . . . Critical Parts Destroyed 1 | 1 . . . . Critical Strikes 20 | 1 . . 3 16 Burn 19 | . . . 3 16 Destroy 1 | 1 . . . . Melee Attacks 9 | . . . 9 . Impact . | . . . . . Slashing . | . . . . . Piercing 9 | . . . 9 . Sneak Attacks 5 | . . . 5 . Combat Hostiles . | . . . . . Follow-up Attacks . | . . . . . Damage Inflicted 5778 | 74 672 745 1129 3158 Guns 3843 | 72 276 72 570 2853 Cannons 554 | . . 113 441 . Explosions 1344 | . 396 560 83 305 Melee 35 | . . . 35 . Ramming 2 | 2 . . . . Kinetic 524 | 72 276 72 16 88 Thermal 3877 | . . 113 995 2769 Explosive 956 | . 396 560 . . Electromagnetic 384 | . . . 83 301 Impact . | . . . . . Slashing . | . . . . . Piercing 35 | . . . 35 . Highest Corruption . | . . . . . Average Corruption . | . . . . . Corruption Purged . | . . . . . Corruption Blocked . | . . . . . Overload Shots . | . . . . . Overflow Damage 55 | . 19 . 36 . Projectiles 36 | . . . 36 . Explosions 19 | . 19 . . . Melee . | . . . . . Knockbacks . | . . . . . Impact . | . . . . . Kinetic . | . . . . . Secondary . | . . . . . Self-Inflicted Damage 58 | . 22 33 3 . Shots 4 | . 1 2 1 . Rammed . | . . . . . Targets Rammed 1 | 1 . . . . Kicked 1 | 1 . . . . Crushed . | . . . . . Highest Temperature 732 | 12 53 4 707 732 Average Temperature 204 | 9 15 3 208 214 Received Heat Transfer 1509 | 24 216 . 129 1140 Effects 75 | . . . 26 49 Shutdowns 25 | . . . 8 17 Energy Bleed 7 | . . . 1 6 Interference 11 | . . . 4 7 Matter Decay 7 | . . . 1 6 Short Circuit 6 | . . . 2 4 Damage (minor) 10 | . . . 3 7 Damage (major) 6 | . . . 6 . Damage (core) 3 | . . . 1 2 Siege Activations . | . . . . . Robots Corrupted . | . . . . . Combat Hostiles . | . . . . . Parts Fried 1 | . . . 1 . Impact Corruptions . | . . . . . Robots Melted 4 | . . . . 4 Combat Hostiles 3 | . . . . 3 Parts Melted 17 | . . . 1 16 Heat Transferred 9234 | . . 148 1695 7391 Parts Sabotaged . | . . . . . Parts Stolen . | . . . . . Parts Stripped . | . . . . . Power Chain Reactions 2 | . . . 1 1 Alert | -11 -10 -10 -8 -8 ------- Run | Yrd Mat Sub Mat Gar Peak Influence 731 | 20 181 . 190 731 Initial 28 | . 11 . . 28 Average 262 | 12 122 . 106 427 Maximum Alert Level 3 | . . . . 3 Low Security (%) 60 | 100 100 . 100 23 Level 1 4 | . . . . 7 Level 2 31 | . . . . 61 Level 3 3 | . . . . 7 Level 4 . | . . . . . Level 5 . | . . . . . High Security . | . . . . . Max Security . | . . . . . Squads Dispatched 2 | . . . 2 . Investigation . | . . . . . Extermination . | . . . . . Reinforcement . | . . . . . Assault . | . . . . . Garrison 2 | . . . 2 . Intercept . | . . . . . Searches Triggered . | . . . . . Construction Impeded . | . . . . . Haulers Reinforced . | . . . . . Active Scanning Responses . | . . . . . Cargo Convoy Interrupts . | . . . . . Stealth | -11 -10 -10 -8 -8 --------- Run | Yrd Mat Sub Mat Gar Distress Signals . | . . . . . Communications Jammed . | . . . . . Distress Signals . | . . . . . Times Spotted 65 | 1 7 14 14 29 Peak Tracking Total 5 | 1 2 5 3 4 Tactical Retreats 6 | . . . . 6 Traps | -11 -10 -10 -8 -8 ------- Run | Yrd Mat Sub Mat Gar Traps Triggered 7 | . 1 . . 6 Indirectly . | . . . . . Trap Hack Attempts . | . . . . . Triggered . | . . . . . Disarmed . | . . . . . Reprogrammed . | . . . . . Reused . | . . . . . Traps Extracted . | . . . . . Installed . | . . . . . Triggered . | . . . . . Machines | -11 -10 -10 -8 -8 ---------- Run | Yrd Mat Sub Mat Gar Machines Disabled 9 | . 1 . 4 4 Max in Single Turn 1 | . 1 . 1 1 Garrison Relay 4 | . . . . 4 Machines Repaired . | . . . . . Machines Dismantled . | . . . . . Machines Sabotaged . | . . . . . Overloaded Fab Kills . | . . . . . Hacking | -11 -10 -10 -8 -8 --------- Run | Yrd Mat Sub Mat Gar Machines Accessed 4 | . 2 . 1 1 Terminals 3 | . 2 . . 1 Fabricators . | . . . . . Repair Stations . | . . . . . Recycling Units . | . . . . . Scanalyzers . | . . . . . Garrison Access 1 | . . . 1 . Total Hacks 6 | . 3 . 1 2 Successful 2 | . 1 . 1 . Failed 4 | . 2 . . 2 Catastrophic . | . . . . . Database Lockouts . | . . . . . Manual . | . . . . . Terminals 5 | . 3 . . 2 Fabricators . | . . . . . Repair Stations . | . . . . . Recycling Units . | . . . . . Scanalyzers . | . . . . . Garrison Access 1 | . . . 1 . Terminal Hacks 1 | . 1 . . . Locate Traps 1 | . 1 . . . Fabricator Hacks . | . . . . . Repair Station Hacks . | . . . . . Recycling Unit Hacks . | . . . . . Scanalyzer . | . . . . . Garrison Access Hacks 1 | . . . 1 . Unlock Access 1 | . . . 1 . Unauthorized Hacks . | . . . . . Terminals . | . . . . . Fabricators . | . . . . . Repair Stations . | . . . . . Recycling Units . | . . . . . Scanalyzers . | . . . . . Garrison Access . | . . . . . Data Cores Recovered . | . . . . . Used . | . . . . . Hacking Detections 3 | . 1 . 1 1 Full Trace Events . | . . . . . Feedback Events . | . . . . . Feedback Blocked . | . . . . . Robot Schematics Acquired . | . . . . . Robots Built . | . . . . . Authchips . | . . . . . Time . | . . . . . Total Robot Build Rating . | . . . . . Part Schematics Acquired . | . . . . . Parts Built . | . . . . . Authchips . | . . . . . Time . | . . . . . Total Part Build Rating . | . . . . . Parts Repaired . | . . . . . Time . | . . . . . Parts Recycled . | . . . . . Recycled Matter . | . . . . . Retrieved Matter . | . . . . . Retrieved Components . | . . . . . Parts Scanalyzed . | . . . . . Part Schematics Acquired . | . . . . . Parts Damaged . | . . . . . Bothacking | -11 -10 -10 -8 -8 ------------ Run | Yrd Mat Sub Mat Gar Used RIF Installer . | . . . . . Robots Hacked . | . . . . . Non-combat . | . . . . . Combat . | . . . . . Robot Hacks Applied . | . . . . . Relay Couplers Released 17 | . . . . 17 Machine Destruction 17 | . . . . 17 Fabnet Peak Effective % . | . . . . . Robots Rewired . | . . . . . Allies Hacked . | . . . . . Hacks Repelled . | . . . . . Allies | -11 -10 -10 -8 -8 -------- Run | Yrd Mat Sub Mat Gar Total Allies . | . . . . . Largest Group . | . . . . . Highest-Rated Group . | . . . . . Highest-Rated Ally . | . . . . . Total Orders . | . . . . . Ally Attacks . | . . . . . Total Damage . | . . . . . Kills . | . . . . . Allies Corrupted . | . . . . . Allies Melted . | . . . . . Intel | -11 -10 -10 -8 -8 ------- Run | Yrd Mat Sub Mat Gar Robot Analysis Total . | . . . . . Derelict Logs Recovered . | . . . . . Drone Launches . | . . . . . Drone Recoveries . | . . . . . Exploration | -11 -10 -10 -8 -8 ------------- Run | Yrd Mat Sub Mat Gar Turns Passed 4240 | 333 450 865 875 1717 Spaces Moved 2310 | 271 313 495 404 827 Core 46 | 27 . . . 19 Treads 184 | . . . . 184 Legs 1374 | 244 313 495 202 120 Wheels 706 | . . . 202 504 Hover . | . . . . . Flight . | . . . . . Fastest Speed 50 | 50 120 120 105 90 Average Speed 139 | 113 120 159 152 138 Slowest Speed 500 | 120 120 190 260 500 Overloaded Moves . | . . . . . Propulsion Burnouts . | . . . . . Robots Hopped . | . . . . . Cave-ins Triggered . | . . . . . Exploration Rate (%) 32 | 11 45 25 20 59 Regions Visited 4 Branch Regions 1 Pre-discovered Areas . | . . . . . Known Exits Taken 1 | . . . 1 . Unknown Exits Taken 3 | 1 1 1 . . Scrap Searched . | . . . . . Spaces Dug . | . . . . . Terrain Destroyed 73 | . 30 33 7 3 Melee . | . . . . . Projectile 9 | . . 2 7 . AOE 64 | . 30 31 . 3 Terrain Rammed . | . . . . . Walls Destroyed . | . . . . . Machines Disabled . | . . . . . Actions | -11 -10 -10 -8 -8 --------- Run | Yrd Mat Sub Mat Gar Total 2996 | 289 348 554 615 1190 Wait 197 | . . . 85 112 Move 2305 | 270 312 494 403 826 Hop . | . . . . . Pick Up 102 | 8 3 22 34 35 Fast Attach 5 | 1 3 . . 1 Attach 40 | 4 1 2 9 24 Detach 4 | . 1 . 2 1 Swap 31 | 1 1 4 14 11 Drop 67 | . 3 18 29 17 Fire 199 | 4 24 14 30 127 Melee 9 | . . . 9 . Ram . | . . . . . Kick 1 | 1 . . . . Crush . | . . . . . Escape Stasis 34 | . . . . 34 Rewire 2 | . . . . 2 Trap . | . . . . . Miscellaneous . | . . . . . Route ------- -11/Scrapyard -10/Materials (discovered 3 exits: [*Mat] / [*Min] / [*Sub]) -10/Subcaves -8/Materials -8/Garrison (discovered 2 exits: [*Mat x2]) History --------- Turn | Location | Event 2 | -11/Scrapyard | Met Revision 17 107 | -11/Scrapyard | Discovered new exit (range 8) 334 | -11/Scrapyard | Entered Materials 335 | -10/Materials | Build established: Mutant 587 | -10/Materials | Discovered new exit (range 16) 680 | -10/Materials | Discovered new exit (range 13) 748 | -10/Materials | Discovered new exit (range 13) 784 | -10/Materials | Entered Subcaves 1015 | -10/Subcaves | Ambushed by swarm of Subdwellers 1536 | -10/Subcaves | Discovered new exit (range 10) 1649 | -10/Subcaves | Entered Materials 1649 | -8/Materials | Evolved 4 slots: Power x1, Propulsion x1, Utility x1, Weapon x1 1726 | -8/Materials | Garrison activated, responded to threat 1921 | -8/Materials | Identified exit to Garrison 2058 | -8/Materials | Build established: Scavenger-Mutant 2428 | -8/Materials | Garrison activated, responded to threat 2524 | -8/Materials | Entered Garrison 2560 | -8/Garrison | Triggered checkpoint 2574 | -8/Garrison | Garrison Relay disabled 2738 | -8/Garrison | Build established: Scavenger-Tank 2808 | -8/Garrison | Triggered checkpoint 2821 | -8/Garrison | Garrison Relay disabled 2882 | -8/Garrison | Triggered checkpoint 2931 | -8/Garrison | Triggered checkpoint 3033 | -8/Garrison | Spotted B-75 Beast 3033 | -8/Garrison | Spotted B-75 Beast 3072 | -8/Garrison | Discovered new exit (range 15) 3082 | -8/Garrison | Triggered checkpoint 3099 | -8/Garrison | Destroyed B-75 Beast 3284 | -8/Garrison | Lost 4 parts (1p2n1u) 3401 | -8/Garrison | Lost 5 parts (3u2w) 3592 | -8/Garrison | Build established: Scavenger-Mutant 3656 | -8/Garrison | Triggered checkpoint 3694 | -8/Garrison | Core integrity fell below 50% 3732 | -8/Garrison | Lost 6 parts (2p3n1u) 3836 | -8/Garrison | Discovered new exit (range 14) 3840 | -8/Garrison | Triggered checkpoint 3868 | -8/Garrison | Attempted to access garrison exit controls, blocked by remote lockdown 3974 | -8/Garrison | Triggered checkpoint 4036 | -8/Garrison | Core integrity fell below 20% 4106 | -8/Garrison | Garrison Relay disabled 4241 | -8/Garrison | Destroyed by Y-45 Defender with Beam Rifle Last Messages --------------- Heat Sink melted. Critical hit (Burn: +37). Y-45 Defender suffers critical hit (Burn). Y-45 Defender heat damages Hvy. Assault Rifle, Lgt. Treads, Beam Rifle. Y-45 Defender heat short circuits Lgt. Treads. Melted Heat Sink. Y-45 Defender suffers critical hit (Burn). Y-45 Defender heat damages core (-7). Heat Sink melted. Lgt. Armor Plating melted. Critical hit (Burn: +37). Acquired Broken Lgt. Treads. Broken Particle Gun destroyed. Y-45 Defender suffers critical hit (Burn). Y-45 Defender destroyed. Y-45 Defender suffers critical hit (Burn). Y-45 Defender heat damages Heat Sink, Hvy. Assault Rifle. [Achievement: 5k Club] Map ----- +----------------------------------------------------+ | | | | | | | | | | | | | | | | | | | | | | | | | ?????????????????????????????????????????????????? | | ?????????????????????????????????????????????????? | | ?????????????????????????????????????????????????? | | ?????????????????????????????????????????????????? | | ?????????????????????????????????????????????????? | | ?????????????????????????????????????????????????? | | ?????????????????????????????????????????????????? | | ?????????????????????????????????????????????????? | | ?????????????????????????????????????????????????? | | ?????????????????????????????????????????????????? | | ???????????????????????####??????????????????????? | | ??????????????????????##! ##?????????????????????? | | ??????????????????????#! !#?????????????????????? | | ??????????????????????# %@ #?????????????????????? | | ??????????????????????###Y##?????????????????????? | | ???????????????????????## #??????????????????????? | | ???????????????????????# #??????????????????????? | | ???????????????????????# #??????????????????????? | | ????????????????######## #??????????????????????? | | ????????????????#=%* %## #??????????????????????? | | ???????????????##% !## #??????????????????????? | | ???######??????# #??????????????????????? | | ???[ ??????# ! #??????????????????????? | | ???[ ??????###!!!### #??????????????????????? | | ???[ ????????#""!""## #??????????????????????? | | ??? ????????######## #??????????????????????? | | ???! ???????????????# #??????????????????????? | | ???! ????????????????# #??????????????????????? | | ???! ????????????????# #??????????????????????? | | ???# #????????????????# #??????????????????##### | | ???# #????????????????# #??????????????????# # | | ???# #??????########### #################### < # | | ???# #??????# # | | #### #??????# # | | #??????# # | | #??????# ################# ############# | | #### %#??????# #???????????????# #???????????? | | ???#%%#??????# #???????????????#####???????????? | +----------------------------------------------------+ Best States ------------- Heat Dissipation 58 Energy Generation 28 Energy Capacity 325 Matter Stores 450 Matter Capacity 450 Sight Range 21 Robot Scan Range 15 Terrain Scan Density 10 Armor Coverage 150 Resistance: KI 20 Resistance: TH 30 Resistance: EX 20 Resistance: EM 20 Resistance: I 20 Resistance: S 20 Resistance: P 20 Evasion (%) 55 Targeting Accuracy 8 Recoil Reduction 3 Offensive Hacking 10 Item Schematics ----------------- None Robot Schematics ------------------ None Fabricated ------------ Nothing Alien Tech Used ----------------- None Achievements -------------- 5k Club It's Just You Risk Taker Troublemaker Challenges ------------ None Game ------ Seed StealthBiometalCompressor Manual? 0 Play Time 01:25:34 Cumulative 4.0 hours Start 2024.07.21 @ 02:09:55 End 2024.07.21 @ 19:11:57 Sessions 1 Manual Loads 0 Difficulty Adventurer Special Mode None Game No. 2 Rogue 0 Adventurer 2 Explorer 0 Win Type - Total 0 Types 0/0/0/0/0/0/0/0/0 Lore% 4 Gallery% 6 Achievement% 7 Wizard Run 0 Options --------- Layout 1 ASCII 0 Keyboard 0 Movement Arrows Keybinds 0 Fullscreen 1 Font 32/Cog Map View 50x35 Zoom Use 0% Tactical HUD 0 Map Filters NONE Filters NONE Steam 0 RUN: 22ce800e-4845-483c-bf8a-fe3935e05933